Cogmind - Beta 12 @@@ ROGUE MODE // 2024.01.21 @ 14:44:13 Player: sasha Result: Destroyed by G-34 Mercenary with Small Laser Performance ------------- Evolutions (1) 500 Regions Visited (2) 400 Robots Destroyed (11) 55 Value Destroyed (226) 226 Prototype IDs (0) 0 Alien Tech Used (0) 0 Bonus (0) 0 TOTAL SCORE: 1181 Bonus ------- None Cogmind --------- Core Integrity 0/400 Matter 249/300 Energy 86/100 System Corruption 0% Temperature Cool (6) Movement Treading (160) Location -9/Materials Parts ------- > --- POWER (1) -------- (None) > --- PROPULSION (2) --- Light Treads Light Treads > --- UTILITY (2) ------ High-capacity Storage Unit > --- WEAPON (4) ------- (None) > --- INVENTORY (20) --- Light Ion Engine Light Treads Improved Terrain Scanner Peak State ------------ > --- POWER ------------ Ion Engine > --- PROPULSION ------- Aluminum Leg Aluminum Leg > --- UTILITY ---------- Small Storage Unit Improved Terrain Scanner > --- WEAPON ----------- Light Assault Rifle Light Assault Rifle > --- INVENTORY -------- Light Ion Engine Light Treads Light Treads VTOL Module VTOL Module VTOL Module VTOL Module [Rating: 10] Favorites ----------- Power Ion Engine Engine Ion Engine Propulsion Light Treads Treads Light Treads Leg Aluminum Leg Utility High-capacity Storage Unit Device Improved Terrain Scanner Storage High-capacity Storage Unit Processor Visual Processing Unit Protection Core Shielding Weapon Light Assault Rifle Energy Gun Small Laser Ballistic Gun Light Assault Rifle Build | -11 -10 -9 ------- Run | Jun Mat Mat Slots Evolved 2 | . . 2 Power . | . . . Propulsion . | . . . Utility . | . . . Weapon 2 | . . 2 Parts Attached 21 | 8 5 8 Power 3 | 3 . . Engine 3 | 3 . . Core . | . . . Reactor . | . . . Propulsion 8 | 2 2 4 Treads 6 | . 2 4 Leg 2 | 2 . . Wheel . | . . . Hover . | . . . Flight . | . . . Utility 5 | 1 3 1 Device 1 | . 1 . Storage 2 | 1 1 . Processor 1 | . 1 . Hackware . | . . . Protection 1 | . . 1 Artifact . | . . . Weapon 5 | 2 . 3 Energy Gun 1 | . . 1 Energy Cannon . | . . . Ballistic Gun 4 | 2 . 2 Ballistic Cannon . | . . . Launcher . | . . . Special Weapon . | . . . Impact Weapon . | . . . Slashing Weapon . | . . . Piercing Weapon . | . . . Special Melee Weapon . | . . . Unidentified Prototypes . | . . . Parts Lost 9 | . . 9 Power 1 | . . 1 Propulsion 3 | . . 3 Utility 1 | . . 1 Weapon 4 | . . 4 Highest Loss Streak 9 | . . 9 To Critical Strikes . | . . . Average Slot Usage (%) 88 | . 100 74 Engine 10 | . 14 6 Treads 18 | . 16 21 Leg 6 | . 11 . Device 1 | . 2 . Storage 12 | . 14 11 Processor 10 | . 11 8 Protection 1 | . . 2 Ballistic Gun 26 | . 28 23 Naked Turns . | . . . Heaviest Build 48 | 12 47 48 Greatest Support 40 | 20 40 40 Greatest Overweight (x) 2 | . 2 2 Average Overweight (x) . | . . 1 Largest Inventory Capacity 20 | 8 20 20 Average Capacity 16 | 7 15 20 Most Carried 11 | 5 11 8 Average Carried 5 | 3 6 5 Final Capacity 20 | 8 20 20 Final Carried 6 | 4 6 3 Class Distribution -------------------- 76% | Mutant 23% | Skirmisher Dominant Class ---------------- Mutant | -10/Materials Skirmisher | -9/Materials Resources | -11 -10 -9 ----------- Run | Jun Mat Mat Matter Collected 448 | 314 49 85 Remotely . | . . . Salvage Created 333 | 105 62 166 Parts 30 | 8 8 14 Haulers Intercepted . | . . . Recyclers Shooed 2 | . 1 1 Parts Field Recycled . | . . . Retrieved Matter . | . . . Parts Self-Destructed . | . . . Prevented . | . . . Kills | -11 -10 -9 ------- Run | Jun Mat Mat Combat Hostiles Destroyed 7 | . 3 4 Guns 7 | . 3 4 Classes Destroyed 7 | 2 2 3 Tunneler 2 | 2 . . Recycler 1 | 1 . . Watcher 1 | . 1 . Swarmer 3 | . 3 . Grunt 2 | . . 2 Duelist 1 | . . 1 Sentry 1 | . . 1 Best Kill Streak 3 | 2 3 1 Combat Bots Only 3 | . 3 1 Max Kills in Single Turn 1 | 1 1 1 Gunslinging . | . . . Exploded . | . . . Melee . | . . . Uniques/NPCs Destroyed . | . . . Combat | -11 -10 -9 -------- Run | Jun Mat Mat Damage Taken 1661 | . 45 1616 Core 400 | . . 400 Absorbed by Shields . | . . . Redirected to Shielding 45 | . . 45 Core Remaining (%) 100 | 100 100 . Volleys Fired 83 | 17 10 56 Largest 3 | 2 2 3 Hottest 60 | 40 40 60 Shots Fired 148 | 34 20 94 Gun 148 | 34 20 94 Cannon . | . . . Launcher . | . . . Special . | . . . Kinetic 136 | 34 20 82 Thermal 12 | . . 12 Explosive . | . . . Electromagnetic . | . . . Robot Hit Streak 8 | 4 4 8 Robot Miss Streak 5 | 4 2 5 Penetration Max . | . . . Secondary Targets . | . . . Shots Hit Robots 95 | 22 11 62 Core Hits 30 | 7 8 15 Critical Kills . | . . . Critical Parts Destroyed . | . . . Critical Strikes . | . . . Melee Attacks . | . . . Impact . | . . . Slashing . | . . . Piercing . | . . . Sneak Attacks . | . . . Combat Hostiles . | . . . Follow-up Attacks . | . . . Damage Inflicted 823 | 182 92 549 Guns 823 | 182 92 549 Cannons . | . . . Explosions . | . . . Melee . | . . . Ramming . | . . . Kinetic 710 | 182 92 436 Thermal 113 | . . 113 Explosive . | . . . Electromagnetic . | . . . Impact . | . . . Slashing . | . . . Piercing . | . . . Highest Corruption . | . . . Average Corruption . | . . . Corruption Purged . | . . . Corruption Blocked . | . . . Overload Shots . | . . . Overflow Damage . | . . . Projectiles . | . . . Explosions . | . . . Melee . | . . . Knockbacks . | . . . Impact . | . . . Kinetic . | . . . Secondary . | . . . Self-Inflicted Damage . | . . . Shots . | . . . Rammed 1 | . 1 . Targets Rammed 1 | . 1 . Kicked . | . . . Crushed . | . . . Highest Temperature 54 | . . 54 Average Temperature 16 | . . 16 Received Heat Transfer 609 | . . 609 Siege Activations . | . . . Robots Corrupted . | . . . Combat Hostiles . | . . . Parts Fried . | . . . Impact Corruptions . | . . . Robots Melted . | . . . Combat Hostiles . | . . . Parts Melted . | . . . Heat Transferred 250 | . . 250 Parts Sabotaged . | . . . Parts Stolen . | . . . Parts Stripped . | . . . Power Chain Reactions . | . . . Missiles Intercepted . | . . . Alert | -11 -10 -9 ------- Run | Jun Mat Mat Peak Influence 146 | 15 146 131 Initial 61 | . 9 61 Average 60 | 5 52 93 Maximum Alert Level . | . . . Low Security (%) 100 | 100 100 100 Level 1 . | . . . Level 2 . | . . . Level 3 . | . . . Level 4 . | . . . Level 5 . | . . . High Security . | . . . Max Security . | . . . Squads Dispatched 2 | . . 2 Investigation . | . . . Extermination . | . . . Reinforcement 2 | . . 2 Assault . | . . . Garrison . | . . . Intercept . | . . . Searches Triggered . | . . . Construction Impeded . | . . . Haulers Reinforced . | . . . Active Scanning Responses . | . . . Cargo Convoy Interrupts . | . . . Stealth | -11 -10 -9 --------- Run | Jun Mat Mat Distress Signals 5 | . 1 4 Communications Jammed . | . . . Distress Signals . | . . . Times Spotted 21 | . 6 15 Peak Tracking Total 7 | . 4 7 Tactical Retreats 1 | . 1 . Traps | -11 -10 -9 ------- Run | Jun Mat Mat Traps Triggered . | . . . Indirectly . | . . . Trap Hack Attempts . | . . . Triggered . | . . . Disarmed . | . . . Reprogrammed . | . . . Reused . | . . . Traps Extracted . | . . . Installed . | . . . Triggered . | . . . Machines | -11 -10 -9 ---------- Run | Jun Mat Mat Machines Disabled . | . . . Max in Single Turn . | . . . Machines Repaired . | . . . Machines Sabotaged . | . . . Overloaded Fab Kills . | . . . Hacking | -11 -10 -9 --------- Run | Jun Mat Mat Machines Accessed 1 | . 1 . Terminals 1 | . 1 . Fabricators . | . . . Repair Stations . | . . . Recycling Units . | . . . Scanalyzers . | . . . Garrison Access . | . . . Total Hacks 1 | . 1 . Successful . | . . . Failed 1 | . 1 . Catastrophic 1 | . 1 . Database Lockouts . | . . . Manual 1 | . 1 . Terminals 1 | . 1 . Fabricators . | . . . Repair Stations . | . . . Recycling Units . | . . . Scanalyzers . | . . . Garrison Access . | . . . Terminal Hacks . | . . . Fabricator Hacks . | . . . Repair Station Hacks . | . . . Recycling Unit Hacks . | . . . Scanalyzer . | . . . Garrison Access Hacks . | . . . Unauthorized Hacks . | . . . Terminals . | . . . Fabricators . | . . . Repair Stations . | . . . Recycling Units . | . . . Scanalyzers . | . . . Garrison Access . | . . . Data Cores Recovered . | . . . Used . | . . . Hacking Detections 1 | . 1 . Full Trace Events . | . . . Feedback Events . | . . . Feedback Blocked . | . . . Robot Schematics Acquired . | . . . Robots Built . | . . . Authchips . | . . . Time . | . . . Total Robot Build Rating . | . . . Part Schematics Acquired . | . . . Parts Built . | . . . Authchips . | . . . Time . | . . . Total Part Build Rating . | . . . Parts Repaired . | . . . Time . | . . . Parts Recycled . | . . . Recycled Matter . | . . . Retrieved Matter . | . . . Retrieved Components . | . . . Parts Scanalyzed . | . . . Part Schematics Acquired . | . . . Parts Damaged . | . . . Bothacking | -11 -10 -9 ------------ Run | Jun Mat Mat Used RIF Installer . | . . . Robots Hacked . | . . . Non-combat . | . . . Combat . | . . . Robot Hacks Applied . | . . . Relay Couplers Released . | . . . Fabnet Peak Effective % . | . . . Robots Rewired . | . . . Allies Hacked . | . . . Hacks Repelled . | . . . Allies | -11 -10 -9 -------- Run | Jun Mat Mat Total Allies . | . . . Largest Group . | . . . Highest-Rated Group . | . . . Highest-Rated Ally . | . . . Total Orders . | . . . Ally Attacks . | . . . Total Damage . | . . . Kills . | . . . Allies Corrupted . | . . . Allies Melted . | . . . Intel | -11 -10 -9 ------- Run | Jun Mat Mat Robot Analysis Total . | . . . Derelict Logs Recovered . | . . . Drone Launches . | . . . Drone Recoveries . | . . . Exploration | -11 -10 -9 ------------- Run | Jun Mat Mat Turns Passed 704 | 109 328 267 Spaces Moved 238 | 50 138 50 Core 19 | 19 . . Treads 117 | . 67 50 Legs 102 | 31 71 . Wheels . | . . . Hover . | . . . Flight . | . . . Fastest Speed 50 | 50 120 160 Average Speed 175 | 93 182 240 Slowest Speed 320 | 120 260 320 Overloaded Moves . | . . . Propulsion Burnouts . | . . . Robots Hopped . | . . . Cave-ins Triggered . | . . . Exploration Rate (%) 18 | 5 38 11 Regions Visited 2 Branch Regions . Pre-discovered Areas . | . . . Known Exits Taken . | . . . Unknown Exits Taken 2 | 1 1 . Scrap Searched . | . . . Spaces Dug . | . . . Terrain Destroyed . | . . . Melee . | . . . Projectile . | . . . AOE . | . . . Terrain Rammed . | . . . Walls Destroyed . | . . . Machines Disabled . | . . . Actions | -11 -10 -9 --------- Run | Jun Mat Mat Total 416 | 84 201 131 Wait 43 | . 32 11 Move 236 | 49 137 50 Hop . | . . . Pick Up 24 | 10 9 5 Fast Attach . | . . . Attach 15 | 6 3 6 Detach . | . . . Swap 6 | 2 2 2 Drop 8 | . 7 1 Fire 83 | 17 10 56 Melee . | . . . Ram . | . . . Kick . | . . . Crush 1 | . 1 . Escape Stasis . | . . . Rewire . | . . . Trap . | . . . Miscellaneous . | . . . Route ------- -11/Junkyard -10/Materials -9/Materials History --------- Turn | Location | Event 11 | -11/Junkyard | Discovered new exit (range 14) 110 | -11/Junkyard | Entered Materials 304 | -10/Materials | Build established: Mutant 397 | -10/Materials | Discovered new exit (range 8) 438 | -10/Materials | Entered another Materials area 438 | -9/Materials | Evolved 2 slots: Weapon x2 645 | -9/Materials | Core integrity fell below 50% 687 | -9/Materials | Core integrity fell below 20% 705 | -9/Materials | Destroyed by G-34 Mercenary with Small Laser Last Messages --------------- 00657_ K-01 Serf collects debris. 00667_ Lgt. Treads destroyed. 00667_ W-16 Scout sends out distress signal. 00669_ Lgt. Assault Rifle destroyed. 00670_ K-01 Serf collects debris. 00671_ R-06 Scavenger collects Heat Sink. 00673_ K-01 Serf collects debris. 00674_ Acquired Sml. Laser. 00674_ R-06 Scavenger collects Aluminum Leg. 00676_ K-01 Serf collects debris. 00678_ R-06 Scavenger collects Heat Sink. 00679_ K-01 Serf collects debris. 00684_ G-34 Mercenary destroyed. 00686_ K-01 Serf collects debris. 00686_ M-13 Machinist repairs G-34 Mercenary. 00688_ Lgt. Treads destroyed. 00690_ K-01 Serf collects debris. 00700_ Sml. Laser destroyed. 00703_ K-01 Serf collects debris. 00703_ Core Shielding destroyed. Map ----- +----------------------------------------------------+ | | | | | ?????????????????????????????????????????????????? | | ?????????????????????????????????????????????????? | | ?????????????????????????????????????????????????? | | ???????##########????????????????????????????????? | | ???????# T #????????????????????????????????? | | ???????# #????????????????????????????????? | | ???????# #????????????????????????????????? | | ???????# #????????????????????????????????? | | ???????# !#????????????????????????????????? | | ???????# """ #????????????????????????????????? | | ???????# """ #?????#########??????????????????? | | ?????????""" #?????# ???????????????????? | | ??????????? ####### """ ??????????????????? | | ?????????####+### # """"" ??????????????????? | | ?????????# !# """"" #?????????????????? | | ?????????# T !+% """"" #?????????????????? | | ?????????# # """ #?????????????????? | | ????#########+### # #?????????????????? | | ????# ## ##] #???????#?????????? | | ????# "" """ ## ## [ #????? #?????????? | | ????# ""S """ ## ############### ##????????? | | ????# "" """ ## T^ = #????????? | | ????# """ ## o ^ #????????? | | ????# """ ## @ k s^ + ???????? | | ????# ## !=s^g""""" #????????? | | ????###########+##= ! =%% """""???????????? | | ?????????????# *%[ ==%*gg """""???????????? | | ?????????????# ############## m #????????? | | ?????????????# #?????????????? #????????? | | ?????????????# #??????????????? ?????? | | ?????????????# #???????????????? o ??????? | | ?????????????# #????????????????? ??????? | | ?????????????#^ #??????????????????? ??????? | | ?????????????# #????????????????????"" ???????? | | ?????????????# #?????????????????????"?????????? | | ?????????????# #???????????????????????????????? | | ?????????????+ +???????????????????????????????? | | ?????????????# #???????????????????????????????? | | ?????????????# #???????????????????????????????? | | ?????????????# #???????????????????????????????? | | ?????????????# ????????????????????????????????? | | ?????????????# ????????????????????????????????? | | ?????????????? ????????????????????????????????? | | ?????????????? ????????????????????????????????? | | ?????????????????????????????????????????????????? | | ?????????????????????????????????????????????????? | | ?????????????????????????????????????????????????? | | ?????????????????????????????????????????????????? | +----------------------------------------------------+ Best States ------------- Heat Dissipation 28 Energy Generation 10 Energy Capacity 250 Matter Stores 300 Matter Capacity 300 Sight Range 18 Terrain Scan Range 16 Terrain Scan Density 10 Core Shielding 20 Evasion (%) 55 Recoil Reduction 2 Item Schematics ----------------- None Robot Schematics ------------------ None Fabricated ------------ Nothing Alien Tech Used ----------------- None Achievements -------------- None Challenges ------------ None Game ------ Seed DeuteriumArmageddonSpear Manual? 0 Play Time 00:11:01 Cumulative 85.7 hours Start 2024.01.21 @ 14:16:15 End 2024.01.21 @ 14:44:13 Sessions 1 Manual Loads 0 Difficulty Rogue Special Mode None Game No. 100 Rogue 100 Adventurer 0 Explorer 0 Win Type - Total 0 Types 0/0/0/0/0/0/0/0/0 Lore% 36 Gallery% 45 Achievement% 37 Wizard Run 0 Options --------- ASCII 0 Keyboard 0 Movement Mouse Keybinds 0 Fullscreen 2 Font 24/Smallcaps Map View 76x50 Tactical HUD 1 Map Filters NONE Filters NONE Steam 1 RUN: 1b0ea078-fef4-4f1c-bce3-c0a161e628e8